lending/lending_fUSD_20250719
["ID","MTS","AMOUNT","RATE_DAILY","PERIOD"]
[373281353,1752927091691,-241.07873,0.00020602,2]
[373281354,1752927091700,-3098.53,0.00020602,2]
[373281355,1752927091710,-779.14,0.00020602,2]
[373281356,1752927091719,-625.82,0.00020602,2]
[373281357,1752927091730,-480.0,0.00020602,2]
[373281358,1752927091740,-480.0,0.00020602,2]
[373281359,1752927091749,-480.0,0.00020602,2]
[373281360,1752927091759,-480.0,0.00020602,2]
[373281361,1752927091769,-480.0,0.00020602,2]
[373281362,1752927091778,-480.0,0.00020602,2]
[373281363,1752927091788,-151.0,0.00020602,2]
[373281364,1752927091798,-480.0,0.00020602,2]
[373281365,1752927091808,-4536.51,0.00020602,2]
[373281366,1752927091820,-482.89,0.00020602,2]
[373281367,1752927091830,-620.34,0.00020602,2]
[373281368,1752927091842,-480.0,0.00020602,2]
[373281369,1752927091852,-480.0,0.00020602,2]
[373281370,1752927091862,-625.37,0.00020602,2]
[373281371,1752927091872,-480.0,0.00020602,2]
[373281372,1752927091882,-7262.97,0.00020602,2]
[373281373,1752927091891,-480.0,0.00020602,2]
[373281374,1752927091901,-405.17,0.00020602,2]
[373281375,1752927091913,-506.04,0.00020602,2]
[373281376,1752927091932,-996.66,0.00020602,2]
[373281377,1752927091942,-814.82,0.00020602,2]
[373281378,1752927091951,-814.36,0.00020602,2]
[373281379,1752927091962,-480.0,0.00020602,2]
[373281380,1752927091972,-480.0,0.00020602,2]
[373281381,1752927091982,-495.52,0.00020602,2]
[373281382,1752927091992,-861.88,0.00020602,2]
[373281383,1752927092002,-480.0,0.00020602,2]
[373281384,1752927092012,-334.84426351,0.00020602,2]
[373281385,1752927092021,-945.47,0.00020602,2]
[373281386,1752927092031,-553.5,0.00020602,2]
[373281387,1752927092040,-480.0,0.00020602,2]
[373281388,1752927092050,-519.08,0.00020602,2]
[373281389,1752927092059,-2098.52402,0.0002061,2]
[373281390,1752927092069,-7681.20591386,0.00020611,2]
[373281391,1752927092079,-528.58075775,0.00020614,2]
[373281392,1752927092089,-5069.07706645,0.00020646,2]
[373281393,1752927092098,-5158.87338134,0.00020646,2]
[373281394,1752927092108,-1000.0,0.00020659,2]
[373281395,1752927092118,-7965.41053268,0.00020666,2]
[373281396,1752927092128,-500.0,0.00020673,2]
[373281397,1752927092139,-158.85486757,0.00020673,2]
[373281398,1752927092149,-10000.0,0.00020706,2]
[373281399,1752927092158,-4125.0,0.00020711,2]
[373281400,1752927092167,-862.0,0.00020711,2]
[373281401,1752927092177,-6048.0,0.00020711,2]
[373281402,1752927092187,-15163.885,0.00020711,2]
[373281403,1752927092198,-500.0,0.00020711,2]
[373281404,1752927092208,-10000.0,0.00020711,2]
[373281405,1752927092218,-480.0,0.00020712,2]
[373281406,1752927092229,-491.25,0.00020712,2]
[373281407,1752927092239,-480.0,0.00020712,2]
[373281408,1752927092248,-480.0,0.00020712,2]
[373281409,1752927092258,-527.7,0.00020712,2]
[373281410,1752927092268,-510.82,0.00020712,2]
[373281411,1752927092278,-480.0,0.00020712,2]
[373281412,1752927092287,-480.0,0.00020712,2]
[373281413,1752927092297,-492.22,0.00020712,2]
[373281414,1752927092307,-480.0,0.00020712,2]
[373281415,1752927092318,-564.73,0.00020712,2]
[373281416,1752927092328,-480.0,0.00020712,2]
[373281417,1752927092338,-480.0,0.00020712,2]
[373281418,1752927092348,-257.06,0.00020712,2]
[373281419,1752927092357,-480.0,0.00020712,2]
[373281420,1752927092367,-480.0,0.00020712,2]
[373281421,1752927092377,-273.28794165,0.00020712,2]
[373281422,1752927092387,-572.13,0.00020712,2]
[373281423,1752927092397,-480.0,0.00020712,2]
[373281424,1752927092406,-480.0,0.00020712,2]
[373281425,1752927092416,-602.84,0.00020712,2]
[373281426,1752927092426,-480.0,0.00020712,2]
[373281427,1752927092435,-480.0,0.00020712,2]
[373281428,1752927092445,-480.0,0.00020712,2]
[373281429,1752927092455,-509.18,0.00020712,2]
[373281430,1752927092465,-1272.92,0.00020712,2]
[373281431,1752927092475,-480.0,0.00020712,2]
[373281432,1752927092486,-480.0,0.00020712,2]
[373281433,1752927092496,-480.0,0.00020712,2]
[373281434,1752927092507,-480.0,0.00020712,2]
[373281435,1752927092517,-632.75,0.00020712,2]
[373281436,1752927092528,-632.62,0.00020712,2]
[373281437,1752927092537,-480.0,0.00020712,2]
[373281438,1752927092547,-679.94,0.00020712,2]
[373281439,1752927092557,-480.0,0.00020712,2]
[373281440,1752927092567,-1585.57,0.00020712,2]
[373281441,1752927092577,-480.0,0.00020712,2]
[373281442,1752927092592,-503.15,0.00020712,2]
[373281443,1752927092602,-571.95,0.00020712,2]
[373281444,1752927092612,-480.0,0.00020712,2]
[373281445,1752927092622,-581.29,0.00020712,2]
[373281446,1752927092633,-480.0,0.00020712,2]
[373281447,1752927092643,-480.0,0.00020712,2]
[373281448,1752927092652,-633.45,0.00020712,2]
[373281449,1752927092663,-490.15,0.00020712,2]
[373281450,1752927092674,-571.94,0.00020712,2]
[373281451,1752927092683,-1050.85,0.00020712,2]
[373281452,1752927092693,-480.0,0.00020712,2]
[373281453,1752927092703,-1313.33,0.00020712,2]
[373281454,1752927092712,-480.0,0.00020712,2]
[373281455,1752927092722,-201.7,0.00020712,2]
[373281456,1752927092732,-1874.03,0.00020712,2]
[373281457,1752927092742,-480.0,0.00020712,2]
[373281458,1752927092752,-824.64,0.00020712,2]
[373281459,1752927092762,-480.0,0.00020712,2]
[373281460,1752927092771,-502.1,0.00020712,2]
[373281461,1752927092781,-1726.56,0.00020712,2]
[373281462,1752927092791,-480.0,0.00020712,2]
[373281463,1752927092802,-480.0,0.00020712,2]
[373281464,1752927092812,-3664.0,0.00020712,2]
[373281465,1752927092822,-622.62,0.00020712,2]
[373281466,1752927092832,-480.0,0.00020712,2]
[373281467,1752927092842,-480.0,0.00020712,2]
[373281468,1752927092851,-607.67,0.00020712,2]
[373281469,1752927092862,-480.0,0.00020712,2]
[373281470,1752927092872,-480.0,0.00020712,2]
[373281471,1752927092881,-759.29,0.00020712,2]
[373281472,1752927092891,-622.7,0.00020712,2]
[373281473,1752927092901,-1312.07,0.00020712,2]
[373281474,1752927092911,-1939.98,0.00020712,2]
[373281475,1752927092920,-1042.32,0.00020712,2]
[373281476,1752927092931,-516.59,0.00020712,2]
[373281477,1752927092940,-480.0,0.00020712,2]
[373281478,1752927092951,-611.66,0.00020712,2]
[373281479,1752927092962,-151.0,0.00020712,2]
[373281480,1752927092972,-480.0,0.00020712,2]
[373281481,1752927092987,-883.72,0.00020712,2]
[373281482,1752927092998,-480.0,0.00020712,2]
[373281483,1752927093009,-480.0,0.00020712,2]
[373281484,1752927093019,-1113.11,0.00020712,2]
[373281485,1752927093030,-480.0,0.00020712,2]
[373281486,1752927093042,-1761.18,0.00020712,2]
[373281487,1752927093052,-480.0,0.00020712,2]
[373281488,1752927093063,-671.88,0.00020712,2]
[373281489,1752927093072,-638.9,0.00020712,2]
[373281490,1752927093082,-483.054661,0.00020712,2]
[373281491,1752927093093,-480.0,0.00020712,2]
[373281492,1752927093103,-808.38,0.00020712,2]
[373281493,1752927093114,-483.054661,0.00020712,2]
[373281494,1752927093125,-587.14,0.00020712,2]
[373281495,1752927093135,-480.0,0.00020712,2]
[373281496,1752927093146,-480.0,0.00020712,2]
[373281497,1752927093155,-2730.74,0.00020712,2]
[373281498,1752927093165,-471.47,0.00020712,2]
[373281499,1752927093176,-480.0,0.00020712,2]
[373281500,1752927093185,-480.0,0.00020712,2]
[373281501,1752927093195,-480.0,0.00020712,2]
[373281502,1752927093205,-480.0,0.00020712,2]
[373281503,1752927093216,-480.0,0.00020712,2]
[373281504,1752927093225,-716.69,0.00020712,2]
[373281505,1752927093239,-526.79,0.00020712,2]
[373281506,1752927093249,-480.0,0.00020712,2]
[373281507,1752927093258,-2050.61,0.00020712,2]
[373281508,1752927093268,-654.07,0.00020712,2]
[373281509,1752927093279,-480.0,0.00020712,2]
[373281510,1752927093289,-1300.36,0.00020712,2]
[373281511,1752927093298,-1273.72,0.00020712,2]
[373281512,1752927093308,-696.21,0.00020712,2]
[373281513,1752927093319,-532.37,0.00020712,2]
[373281514,1752927093329,-480.0,0.00020712,2]
[373281515,1752927093341,-8406.08,0.00020712,2]
[373281516,1752927093351,-3098.53,0.00020712,2]
[373281517,1752927093361,-779.14,0.00020712,2]
[373281518,1752927093370,-625.82,0.00020712,2]
[373281519,1752927093381,-480.0,0.00020712,2]
[373281520,1752927093390,-480.0,0.00020712,2]
[373281521,1752927093400,-480.0,0.00020712,2]
[373281522,1752927093410,-480.0,0.00020712,2]
[373281523,1752927093420,-480.0,0.00020712,2]
[373281524,1752927093429,-480.0,0.00020712,2]
[373281525,1752927093439,-480.0,0.00020712,2]
[373281526,1752927093448,-4536.51,0.00020712,2]
[373281527,1752927093458,-482.89,0.00020712,2]
[373281528,1752927093469,-620.34,0.00020712,2]
[373281529,1752927093479,-480.0,0.00020712,2]
[373281530,1752927093490,-480.0,0.00020712,2]
[373281531,1752927093500,-625.37,0.00020712,2]
[373281532,1752927093510,-480.0,0.00020712,2]
[373281533,1752927093520,-7262.97,0.00020712,2]
[373281534,1752927093530,-245.72,0.00020712,2]
[373281535,1752927093540,-996.66,0.00020712,2]
[373281536,1752927093550,-814.82,0.00020712,2]
[373281537,1752927093560,-814.36,0.00020712,2]
[373281538,1752927093570,-480.0,0.00020712,2]
[373281539,1752927093583,-351.6224764,0.00020712,2]
[373281540,1752927093593,-495.52,0.00020712,2]
[373281541,1752927093603,-861.88,0.00020712,2]
[373281542,1752927093613,-516.66,0.00020712,2]
[373281543,1752927093623,-945.47,0.00020712,2]
[373281544,1752927093633,-553.5,0.00020712,2]
[373281545,1752927093643,-546.94,0.00020712,2]
[373281546,1752927093653,-519.08,0.00020712,2]
[373281547,1752927093663,-306.47943934,0.00020713,2]
[373281548,1752927093674,-1000.0,0.00020717,2]
[373281549,1752927093683,-1000.0,0.00020717,2]
[373281550,1752927093693,-1000.0,0.00020717,2]
[373281551,1752927093703,-596.4592,0.00020717,2]
[373281552,1752927093714,-8260.13072239,0.00020721,2]
[373281553,1752927093724,-480.0,0.00020747,2]
[373281554,1752927093736,-467.83645522,0.00020747,2]
[373281555,1752927093746,-480.0,0.00020747,2]
[373281556,1752927093756,-480.0,0.00020747,2]
[373281557,1752927093767,-480.0,0.00020747,2]
[373281558,1752927093778,-8565.75555911,0.00020776,2]
[373281559,1752927093788,-690.40810766,0.00020784,2]
[373281560,1752927093798,-500.0,0.0002082,2]
[373281561,1752927093808,-1715.14642934,0.0002082,2]
[373281562,1752927093818,-480.0,0.00020821,2]
[373281563,1752927093827,-491.25,0.00020821,2]
[373281564,1752927093838,-151.0,0.00020821,2]
[373281565,1752927093848,-200.0,0.00020821,2]
[373281566,1752927093858,-151.0,0.00020821,2]
[373281567,1752927094146,-151.0,0.00020821,2]
[373281568,1752927094157,-480.0,0.00020821,2]
[373281569,1752927094168,-480.0,0.00020821,2]
[373281570,1752927094178,-527.7,0.00020821,2]
[373281571,1752927094189,-236.821644,0.00020821,2]
[373281572,1752927094199,-510.82,0.00020821,2]
[373281573,1752927094209,-480.0,0.00020821,2]
[373281574,1752927094220,-608.75750368,0.00020821,2]
[373281575,1752927094229,-619.87649212,0.00020821,2]
[373281576,1752927094241,-492.22,0.00020821,2]
[373281577,1752927094251,-406.33,0.00020821,2]
[373281578,1752927094262,-564.73,0.00020821,2]
[373281579,1752927094273,-480.0,0.00020821,2]
[373281580,1752927094283,-480.0,0.00020821,2]
[373281581,1752927094293,-159.485168,0.00020821,2]
[373281582,1752927094304,-159.485168,0.00020821,2]
[373281583,1752927094313,-480.0,0.00020821,2]
[373281584,1752927094323,-480.0,0.00020821,2]
[373281585,1752927094333,-572.13,0.00020821,2]
[373281586,1752927094342,-480.0,0.00020821,2]
[373281587,1752927094352,-480.0,0.00020821,2]
[373281588,1752927094361,-480.0,0.00020821,2]
[373281589,1752927094371,-480.0,0.00020821,2]
[373281590,1752927094380,-244.27047616,0.00020821,2]
[373281591,1752927094391,-509.18,0.00020821,2]
[373281592,1752927094400,-1272.92,0.00020821,2]
[373281593,1752927094410,-511.16,0.00020821,2]
[373281594,1752927094419,-347.52,0.00020821,2]
[373281595,1752927094429,-152.0,0.00020821,2]
[373281596,1752927094439,-156.88962715,0.00020821,2]
[373281597,1752927094448,-480.0,0.00020821,2]
[373281598,1752927094458,-1210.0,0.00020821,2]
[373281599,1752927094467,-1210.0,0.00020821,2]
[373281600,1752927094477,-1210.0,0.00020821,2]
[373281601,1752927094489,-1224.60918743,0.00020821,2]
[373281602,1752927094498,-480.0,0.00020821,2]
[373281603,1752927094508,-632.75,0.00020821,2]
[373281604,1752927094518,-632.62,0.00020821,2]
[373281605,1752927094527,-480.0,0.00020821,2]
[373281606,1752927094537,-679.94,0.00020821,2]
[373281607,1752927094547,-480.0,0.00020821,2]
[373281608,1752927094557,-1585.57,0.00020821,2]
[373281609,1752927094567,-480.0,0.00020821,2]
[373281610,1752927094576,-503.15,0.00020821,2]
[373281611,1752927094590,-571.95,0.00020821,2]
[373281612,1752927094600,-480.0,0.00020821,2]
[373281613,1752927094609,-581.29,0.00020821,2]
[373281614,1752927094620,-480.0,0.00020821,2]
[373281615,1752927094630,-480.0,0.00020821,2]
[373281616,1752927094640,-633.45,0.00020821,2]
[373281617,1752927094649,-490.15,0.00020821,2]
[373281618,1752927094660,-571.94,0.00020821,2]
[373281619,1752927094670,-163.81252711,0.00020821,2]
[373281620,1752927094680,-1050.85,0.00020821,2]
[373281621,1752927094689,-337.66,0.00020821,2]
[373281622,1752927094699,-151.0,0.00020821,2]
[373281623,1752927094710,-1313.33,0.00020821,2]
[373281624,1752927094719,-480.0,0.00020821,2]
[373281625,1752927094729,-1874.03,0.00020821,2]
[373281626,1752927094741,-480.0,0.00020821,2]
[373281627,1752927094751,-824.64,0.00020821,2]
[373281628,1752927094760,-480.0,0.00020821,2]
[373281629,1752927094769,-151.0,0.00020821,2]
[373281630,1752927094779,-214.44595616,0.00020821,2]
[373281631,1752927094789,-502.1,0.00020821,2]
[373281632,1752927094799,-1726.56,0.00020821,2]
[373281633,1752927094808,-480.0,0.00020821,2]
[373281634,1752927094818,-576.53,0.00020821,2]
[373281635,1752927094828,-3664.0,0.00020821,2]
[373281636,1752927094838,-622.62,0.00020821,2]
[373281637,1752927094848,-480.0,0.00020821,2]
[373281638,1752927094857,-480.0,0.00020821,2]
[373281639,1752927094867,-607.67,0.00020821,2]
[373281640,1752927094876,-480.0,0.00020821,2]
[373281641,1752927094886,-480.0,0.00020821,2]
[373281642,1752927094896,-759.29,0.00020821,2]
[373281643,1752927094905,-622.7,0.00020821,2]
[373281644,1752927094915,-1312.07,0.00020821,2]
[373281645,1752927094925,-1939.98,0.00020821,2]
[373281646,1752927094934,-1042.32,0.00020821,2]
[373281647,1752927094944,-480.0,0.00020821,2]
[373281648,1752927094953,-516.59,0.00020821,2]
[373281649,1752927094963,-644.324241,0.00020821,2]
[373281650,1752927094972,-611.66,0.00020821,2]
[373281651,1752927094982,-480.0,0.00020821,2]
[373281652,1752927094997,-883.72,0.00020821,2]
[373281653,1752927095006,-644.324241,0.00020821,2]
[373281654,1752927095016,-480.0,0.00020821,2]
[373281655,1752927095026,-480.0,0.00020821,2]
[373281656,1752927095036,-1113.11,0.00020821,2]
[373281657,1752927095046,-609.3,0.00020821,2]
[373281658,1752927095056,-1761.18,0.00020821,2]
[373281659,1752927095066,-480.0,0.00020821,2]
[373281660,1752927095076,-671.88,0.00020821,2]
[373281661,1752927095086,-638.9,0.00020821,2]
[373281662,1752927095095,-424.86815457,0.00020821,2]
[373281663,1752927095105,-808.38,0.00020821,2]
[373281664,1752927095115,-587.14,0.00020821,2]
[373281665,1752927095125,-480.0,0.00020821,2]
[373281666,1752927095135,-480.0,0.00020821,2]
[373281667,1752927095144,-2730.74,0.00020821,2]
[373281668,1752927095153,-480.0,0.00020821,2]
[373281669,1752927095162,-480.0,0.00020821,2]
[373281670,1752927095171,-480.0,0.00020821,2]
[373281671,1752927095182,-480.0,0.00020821,2]
[373281672,1752927095193,-480.0,0.00020821,2]
[373281673,1752927095204,-716.69,0.00020821,2]
[373281674,1752927095216,-526.79,0.00020821,2]
[373281675,1752927095227,-480.0,0.00020821,2]
[373281676,1752927095241,-2050.61,0.00020821,2]
[373281677,1752927095250,-654.07,0.00020821,2]
[373281678,1752927095260,-480.0,0.00020821,2]
[373281679,1752927095270,-1300.36,0.00020821,2]
[373281680,1752927095279,-696.21,0.00020821,2]
[373281681,1752927095289,-1273.72,0.00020821,2]
[373281682,1752927095299,-532.37,0.00020821,2]
[373281683,1752927095308,-241.07873,0.00020821,2]
[373281684,1752927095318,-480.0,0.00020821,2]
[373281685,1752927095328,-8406.08,0.00020821,2]
[373281686,1752927095338,-241.07873,0.00020821,2]
[373281687,1752927095347,-3098.53,0.00020821,2]
[373281688,1752927095361,-779.14,0.00020821,2]
[373281689,1752927095372,-625.82,0.00020821,2]
[373281690,1752927095382,-480.0,0.00020821,2]
[373281691,1752927095392,-320.03,0.00020821,2]
[373281692,1752927095403,-480.0,0.00020821,2]
[373281693,1752927095414,-480.0,0.00020821,2]
[373281694,1752927095424,-480.0,0.00020821,2]
[373281695,1752927095434,-480.0,0.00020821,2]
[373281696,1752927095443,-480.0,0.00020821,2]
[373281697,1752927095453,-4536.51,0.00020821,2]
[373281698,1752927095462,-482.89,0.00020821,2]
[373281699,1752927095471,-620.34,0.00020821,2]
[373281700,1752927095479,-480.0,0.00020821,2]
[373281701,1752927095494,-348.78,0.00020821,2]
[373281702,1752927095504,-625.37,0.00020821,2]
[373281703,1752927095513,-480.0,0.00020821,2]
[373281704,1752927095523,-7262.97,0.00020821,2]
[373281705,1752927095533,-996.66,0.00020821,2]
[373281706,1752927095542,-814.82,0.00020821,2]
[373281707,1752927095552,-814.36,0.00020821,2]
[373281708,1752927095562,-480.0,0.00020821,2]
[373281709,1752927095571,-169.0,0.00020821,2]
[373281710,1752927095582,-153.0,0.00020821,2]
[373281711,1752927095593,-174.28570945,0.00020821,2]
[373281712,1752927095602,-153.0,0.00020821,2]
[373281713,1752927095612,-495.52,0.00020821,2]
[373281714,1752927095621,-861.88,0.00020821,2]
[373281715,1752927095633,-153.0,0.00020821,2]
[373281716,1752927095643,-153.0,0.00020821,2]
[373281717,1752927095652,-298.06731718,0.00020821,2]
[373281718,1752927095663,-945.47,0.00020821,2]
[373281719,1752927095673,-553.5,0.00020821,2]
[373281720,1752927095683,-519.08,0.00020821,2]
[373281721,1752927095693,-1742.81580803,0.00020822,2]
[373281722,1752927095704,-500.0,0.00020822,2]
[373281723,1752927095714,-500.0,0.00020822,2]
[373281724,1752927095724,-3635.0,0.00020822,2]
[373281725,1752927095738,-1089.0,0.00020822,2]
[373281726,1752927095748,-500.0,0.00020822,2]
[373281727,1752927095758,-150.0,0.00020822,2]
[373281728,1752927095768,-444.0,0.00020822,2]
[373281729,1752927095778,-151.0,0.00020822,2]
[373281730,1752927095788,-8882.6885148,0.00020831,2]
[373281731,1752927095798,-480.0,0.00020857,2]
[373281732,1752927095807,-480.0,0.00020857,2]
[373281733,1752927095818,-9211.34798985,0.00020886,2]
[373281734,1752927095828,-210.37288303,0.000209,4]
[373281735,1752927095837,-2505.63,0.00020909,2]
[373281736,1752927095848,-151.0,0.00020909,2]
[373281737,1752927095858,-217.214018,0.00020931,2]
[373281738,1752927095868,-217.214018,0.00020931,2]
[373281739,1752927095878,-251.71,0.00020931,2]
[373281740,1752927095887,-491.25,0.00020931,2]
[373281741,1752927095898,-151.0,0.00020931,2]
[373281742,1752927095908,-629.22,0.00020931,2]
[373281743,1752927095918,-480.0,0.00020931,2]
[373281744,1752927095928,-527.7,0.00020931,2]
[373281745,1752927095938,-510.82,0.00020931,2]
[373281746,1752927095949,-480.0,0.00020931,2]
[373281747,1752927095959,-492.22,0.00020931,2]
[373281748,1752927095970,-564.73,0.00020931,2]
[373281749,1752927095980,-480.0,0.00020931,2]
[373281750,1752927095997,-480.0,0.00020931,2]
[373281751,1752927096007,-394.34,0.00020931,2]
[373281752,1752927096018,-480.0,0.00020931,2]
[373281753,1752927096028,-572.13,0.00020931,2]
[373281754,1752927096039,-570.42,0.00020931,2]
[373281755,1752927096049,-173.922332,0.00020931,2]
[373281756,1752927096059,-480.0,0.00020931,2]
[373281757,1752927096070,-151.0,0.00020931,2]
[373281758,1752927096079,-285.27501025,0.00020931,2]
[373281759,1752927096088,-480.0,0.00020931,2]
[373281760,1752927096097,-509.18,0.00020931,2]
[373281761,1752927096107,-1272.92,0.00020931,2]
[373281762,1752927096118,-480.0,0.00020931,2]
[373281763,1752927096128,-170.630349,0.00020931,2]
[373281764,1752927096138,-218.94,0.00020931,2]
[373281765,1752927096148,-632.75,0.00020931,2]
[373281766,1752927096159,-170.630349,0.00020931,2]
[373281767,1752927096168,-632.62,0.00020931,2]
[373281768,1752927096178,-480.0,0.00020931,2]
[373281769,1752927096188,-679.94,0.00020931,2]
[373281770,1752927096198,-480.0,0.00020931,2]
[373281771,1752927096208,-1585.57,0.00020931,2]
[373281772,1752927096217,-480.0,0.00020931,2]
[373281773,1752927096227,-503.15,0.00020931,2]
[373281774,1752927096242,-571.95,0.00020931,2]
[373281775,1752927096251,-480.0,0.00020931,2]
[373281776,1752927096260,-581.29,0.00020931,2]
[373281777,1752927096268,-480.0,0.00020931,2]
[373281778,1752927096277,-480.0,0.00020931,2]
[373281779,1752927096286,-633.45,0.00020931,2]
[373281780,1752927096295,-490.15,0.00020931,2]
[373281781,1752927096305,-571.94,0.00020931,2]
[373281782,1752927096315,-1050.85,0.00020931,2]
[373281783,1752927096324,-1313.33,0.00020931,2]
[373281784,1752927096334,-480.0,0.00020931,2]
[373281785,1752927096344,-1874.03,0.00020931,2]
[373281786,1752927096353,-480.0,0.00020931,2]
[373281787,1752927096363,-824.64,0.00020931,2]
[373281788,1752927096372,-480.0,0.00020931,2]
[373281789,1752927096382,-1726.56,0.00020931,2]
[373281790,1752927096392,-502.1,0.00020931,2]
[373281791,1752927096401,-480.0,0.00020931,2]
[373281792,1752927096411,-3664.0,0.00020931,2]
[373281793,1752927096421,-622.62,0.00020931,2]
[373281794,1752927096430,-480.0,0.00020931,2]
[373281795,1752927096440,-480.0,0.00020931,2]
[373281796,1752927096449,-607.67,0.00020931,2]
[373281797,1752927096459,-480.0,0.00020931,2]
[373281798,1752927096468,-480.0,0.00020931,2]
[373281799,1752927096478,-759.29,0.00020931,2]
[373281800,1752927096490,-1312.07,0.00020931,2]
[373281801,1752927096500,-622.7,0.00020931,2]
[373281802,1752927096510,-1939.98,0.00020931,2]
[373281803,1752927096519,-1042.32,0.00020931,2]
[373281804,1752927096529,-480.0,0.00020931,2]
[373281805,1752927096539,-516.59,0.00020931,2]
[373281806,1752927096550,-611.66,0.00020931,2]
[373281807,1752927096561,-480.0,0.00020931,2]
[373281808,1752927096570,-883.72,0.00020931,2]
[373281809,1752927096643,-480.0,0.00020931,2]
[373281810,1752927096654,-480.0,0.00020931,2]
[373281811,1752927096664,-1113.11,0.00020931,2]
[373281812,1752927096674,-1761.18,0.00020931,2]
[373281813,1752927096683,-480.0,0.00020931,2]
[373281814,1752927096692,-671.88,0.00020931,2]
[373281815,1752927096702,-638.9,0.00020931,2]
[373281816,1752927096711,-483.054661,0.00020931,2]
[373281817,1752927096721,-808.38,0.00020931,2]
[373281818,1752927096730,-483.054661,0.00020931,2]
[373281819,1752927096742,-587.14,0.00020931,2]
[373281820,1752927096751,-480.0,0.00020931,2]
[373281821,1752927096760,-480.0,0.00020931,2]
[373281822,1752927096770,-2730.74,0.00020931,2]
[373281823,1752927096779,-480.0,0.00020931,2]
[373281824,1752927096789,-480.0,0.00020931,2]
[373281825,1752927096798,-166.26,0.00020931,2]
[373281826,1752927096807,-480.0,0.00020931,2]
[373281827,1752927096817,-480.0,0.00020931,2]
[373281828,1752927096826,-716.69,0.00020931,2]
[373281829,1752927096836,-526.79,0.00020931,2]
[373281830,1752927096846,-480.0,0.00020931,2]
[373281831,1752927096855,-2050.61,0.00020931,2]
[373281832,1752927096869,-654.07,0.00020931,2]
[373281833,1752927096878,-480.0,0.00020931,2]
[373281834,1752927096888,-1300.36,0.00020931,2]
[373281835,1752927096898,-696.21,0.00020931,2]
[373281836,1752927096907,-1273.72,0.00020931,2]
[373281837,1752927096917,-532.37,0.00020931,2]
[373281838,1752927096927,-480.0,0.00020931,2]
[373281839,1752927096936,-8406.08,0.00020931,2]
[373281840,1752927096946,-3098.53,0.00020931,2]
[373281841,1752927096956,-779.14,0.00020931,2]
[373281842,1752927096966,-625.82,0.00020931,2]
[373281843,1752927096975,-480.0,0.00020931,2]
[373281844,1752927096988,-221.0,0.00020931,2]
[373281845,1752927096997,-480.0,0.00020931,2]
[373281846,1752927097007,-480.0,0.00020931,2]
[373281847,1752927097017,-598.08,0.00020931,2]
[373281848,1752927097026,-480.0,0.00020931,2]
[373281849,1752927097036,-4536.51,0.00020931,2]
[373281850,1752927097045,-482.89,0.00020931,2]
[373281851,1752927097055,-620.34,0.00020931,2]
[373281852,1752927097065,-459.8,0.00020931,2]